bitfinex/quotes_ETHUSD_20240618
["timestamp","ask_amount","ask_price","bid_price","bid_amount"]
[1718754445694,5.69876268,3482.7,3482.4,2.87156]
[1718754445906,5.20174,3482.7,3482.4,2.87156]
[1718754446298,2.87142,3482.6,3482.2,2.87173]
[1718754446636,2.87142,3482.6,3482.3,0.12570606]
[1718754446838,0.85699327,3482.7,3481.6,3.75]
[1718754447037,2.3619,3483.4,3483.3,2.87084]
[1718754447397,2.3619,3483.8,3483.3,0.12550804]
[1718754447615,2.3619,3483.8,3483.6,2.87053]
[1718754447823,2.3619,3483.8,3483.7,2.99595781]
[1718754448010,2.59809,3483.8,3483.7,2.99595781]
[1718754448333,2.3619,3483.8,3483.7,5.86646781]
[1718754448642,2.3619,3484.2,3483.9,2.87032]
[1718754448867,2.3619,3484.2,3484.0,0.12510486]
[1718754449162,0.523186,3484.1,3484.0,2.99534486]
[1718754449499,0.523186,3484.1,3484.0,0.12510486]
[1718754450241,2.3619,3484.2,3484.0,0.12510486]
[1718754450606,2.3619,3484.2,3484.0,2.99536486]
[1718754457421,2.3619,3484.2,3484.0,0.12510486]
[1718754457741,2.3619,3484.2,3484.0,2.99535486]
[1718754459247,2.3619,3484.2,3484.0,0.12510486]
[1718754462663,2.3619,3484.2,3484.1,5.74036]
[1718754462863,2.3619,3484.2,3484.1,0.12428467]
[1718754464524,5.23199,3484.2,3484.1,0.12428467]
[1718754464918,2.8702,3484.1,3483.7,2.8705]
[1718754465154,2.8704,3483.9,3483.2,2.87091]
[1718754465338,2.2918,3483.8,3483.3,2.87076]
[1718754466509,2.2918,3483.8,3483.5,2.87067]
[1718754466712,2.86986,3484.5,3484.1,2.87012]
[1718754467173,2.86986,3484.5,3484.0,2.87025]
[1718754467174,5.68425984,3484.6,3484.2,2.87009]
[1718754468015,5.18749,3484.6,3484.3,2.87]
[1718754468252,7.36683398,3484.6,3484.3,2.87]
[1718754468481,7.86360382,3484.6,3484.1,2.87012]
[1718754468682,7.86360382,3484.6,3484.2,2.87008]
[1718754469268,7.86360382,3484.6,3484.3,2.87]
[1718754469489,7.36683398,3484.6,3484.3,2.87]
[1718754471273,7.36683398,3484.6,3484.4,0.12429701]
[1718754472795,5.18749,3484.6,3484.4,0.12429701]
[1718754473290,5.18749,3484.6,3484.5,0.12428196]
[1718754473497,5.18749,3484.6,3484.2,2.87007]
[1718754473792,2.86986,3484.5,3484.3,0.12431206]
[1718754474678,2.81446984,3484.6,3484.1,2.87016]
[1718754474888,2.86985,3484.5,3484.1,2.87016]
[1718754475248,2.87002,3484.3,3484.0,2.87024]
[1718754475997,2.87002,3484.3,3483.7,3.71246]
[1718754475998,2.8702,3484.1,3483.7,2.87045]
[1718754476511,2.8703,3484.0,3482.8,1.728]
[1718754476663,2.87041,3483.9,3483.5,2.87067]
[1718754478002,0.49676984,3484.0,3483.7,2.87049]
[1718754478210,5.23219,3484.1,3483.7,2.87049]
[1718754478511,2.87026,3484.0,3483.6,2.87052]
[1718754478666,2.85876984,3484.1,3483.8,2.87036]
[1718754478862,2.362,3484.1,3483.8,2.87036]
[1718754479419,5.2322,3484.1,3483.9,0.12439933]
[1718754479898,2.362,3484.1,3483.9,0.12439933]
[1718754480065,5.23219,3484.1,3483.9,0.12439933]
[1718754480266,2.362,3484.1,3483.9,0.12439933]
[1718754480462,5.23219,3484.1,3483.8,2.87042]
[1718754480667,5.23219,3484.1,3483.9,0.12435875]
[1718754480898,5.23219,3484.1,3483.7,2.87048]
[1718754481108,5.23219,3484.1,3483.8,0.1243738]
[1718754481665,2.87027,3484.0,3483.8,0.1243738]
[1718754482097,0.49676984,3484.1,3484.0,2.87026]
[1718754482373,1.49793214,3484.3,3484.0,2.99460369]
[1718754482569,2.08657107,3484.2,3484.0,5.86480369]
[1718754482786,1.49793214,3484.3,3484.0,2.99454369]
[1718754483170,2.08655085,3484.2,3484.0,2.99454369]
[1718754483372,3.58448299,3484.2,3484.0,2.99454369]
[1718754483570,2.4933,3484.1,3484.0,0.12434369]
[1718754483812,14.68835777,3484.1,3484.0,0.12434369]
[1718754483988,2.87042,3483.9,3483.4,2.8707]
[1718754484318,2.87042,3483.9,3483.5,0.1244325]
[1718754484525,2.87043,3483.8,3483.5,0.1244325]
[1718754485418,4.95738927,3483.7,3483.5,0.1244325]
[1718754485724,4.8681482,3483.7,3483.3,2.87083]
[1718754486009,2.08683163,3483.6,3483.3,2.87083]
[1718754486176,3.58763999,3483.6,3483.3,2.87083]
[1718754486375,2.08683163,3483.5,3483.3,2.87083]
[1718754486570,1.50080836,3483.6,3483.4,2.87075]
[1718754486811,4.37134836,3483.7,3483.4,2.87075]
[1718754486996,2.08683099,3483.6,3483.4,2.87075]
[1718754487303,2.08683099,3483.6,3483.5,5.74134]
[1718754488020,3.99410836,3483.8,3483.6,2.87059]
[1718754488176,3.58987821,3483.7,3483.5,2.87067]
[1718754488377,1.50317063,3483.7,3483.6,2.87059]
[1718754488678,2.08670008,3483.7,3483.6,2.87059]
[1718754489102,3.58987071,3483.7,3483.6,2.87059]
[1718754489312,3.58987071,3483.7,3483.6,5.74118]
[1718754489604,3.58987071,3483.7,3483.6,2.87059]
[1718754489907,3.59057851,3483.7,3483.3,2.87082]
[1718754490109,4.37100008,3483.6,3483.3,2.87082]
[1718754490308,3.59057851,3483.5,3483.3,2.87082]
[1718754490512,2.08670008,3483.4,3483.3,2.87082]
[1718754491197,3.59057851,3483.4,3483.3,2.87082]
[1718754491399,2.08670008,3483.4,3483.3,5.74166]
[1718754491601,2.08670008,3483.4,3483.3,9.54151524]
[1718754491779,1.50387843,3483.7,3483.6,5.74118]
[1718754492198,4.15142396,3484.0,3483.7,2.87051]
[1718754492398,5.97760763,3483.9,3483.7,2.87051]
[1718754492610,4.17295351,3483.8,3483.7,2.87051]
[1718754492979,4.17295351,3483.8,3483.7,8.61153]
[1718754493286,4.17295351,3483.8,3483.7,7.09459656]
[1718754493485,4.17295351,3483.8,3483.7,5.86558132]
[1718754493693,4.17295351,3483.8,3483.7,2.99507132]
[1718754493898,4.17295351,3483.8,3483.7,0.12456132]
[1718754494116,4.17295351,3483.8,3483.5,2.87066]
[1718754494117,9.41537351,3483.8,3483.5,2.87066]
[1718754494289,9.41537351,3483.8,3483.6,0.12457638]
[1718754494290,6.47810081,3483.7,3483.6,0.12457638]
[1718754494620,6.47839475,3483.7,3483.5,2.87066]
[1718754494914,5.98156983,3483.6,3483.5,12.141011]
[1718754495222,1.50691332,3483.8,3483.7,8.61153]
[1718754495510,3.35691332,3484.0,3483.9,8.61102]
[1718754495816,3.93632338,3484.0,3483.9,9.57751401]
[1718754496387,3.93632338,3484.0,3483.9,8.73551401]
[1718754496712,6.02267248,3484.0,3483.9,8.73551401]
[1718754496900,6.02267248,3484.0,3483.9,9.69326541]
[1718754497102,3.93632338,3484.0,3483.9,9.69326541]
[1718754500126,6.02267264,3484.0,3483.9,9.69326541]
[1718754500429,7.83108092,3484.0,3483.9,9.69326541]
[1718754500928,6.02267264,3484.0,3483.9,2.99483401]
[1718754501087,7.83108092,3484.0,3483.9,2.99483401]
[1718754501286,11.36743264,3484.0,3483.9,0.12449401]
[1718754501486,15.65839544,3484.0,3483.6,2.87052]
[1718754501681,1.80782306,3483.8,3483.7,2.99485829]
[1718754501985,5.9804957,3483.8,3483.7,2.99485829]
[1718754503018,5.9804957,3483.8,3483.7,0.12434829]
[1718754504223,7.04309264,3483.8,3483.2,2.87089]
[1718754504384,2.08632338,3483.7,3483.4,2.87072]
[1718754504580,2.87059,3483.6,3483.2,2.8709]
[1718754504785,2.08632338,3483.5,3483.3,2.87082]
[1718754505082,2.08632338,3483.4,3483.3,2.87082]
[1718754505277,0.49682478,3483.8,3483.5,2.87067]
[1718754505484,2.0867331,3483.7,3483.6,2.87059]
[1718754505748,2.08650511,3483.8,3483.7,2.87051]
[1718754506044,2.60663444,3483.9,3483.8,2.87042]
[1718754506211,4.19635536,3483.9,3483.8,2.87042]
[1718754506543,4.69318014,3483.9,3483.8,2.87042]
[1718754508242,4.69318014,3483.9,3483.8,5.86519691]
[1718754508443,4.19635536,3483.9,3483.8,2.99477691]
[1718754508646,4.69318014,3483.9,3483.8,2.99477691]
[1718754509234,4.69318014,3483.9,3483.8,2.87042]
[1718754512818,4.69318014,3483.9,3483.8,2.99478705]
[1718754514334,2.58337048,3483.9,3483.8,2.99478705]
[1718754514517,2.0865457,3483.9,3483.8,2.99478705]
[1718754515647,2.58337048,3483.9,3483.8,2.99478705]
[1718754516150,2.0865457,3483.9,3483.8,2.99478705]
[1718754518058,2.58333569,3483.9,3483.8,2.99478705]
[1718754518423,2.0865457,3483.9,3483.8,2.99478705]
[1718754521121,3.89414282,3483.9,3483.8,2.99478705]
[1718754526373,6.76448282,3483.9,3483.8,0.12436705]
[1718754526520,10.77727009,3483.9,3483.8,0.12436705]
[1718754526723,7.90693009,3483.9,3483.4,2.87074]
[1718754526945,4.9569757,3483.8,3483.5,0.12438853]
[1718754527144,2.0865457,3483.7,3483.5,0.12438853]
[1718754527835,3.89462421,3483.7,3483.5,0.12438853]
[1718754528061,2.0865457,3483.6,3483.5,0.12438853]
[1718754529863,2.4326,3483.6,3483.5,0.12438853]
[1718754530163,4.5191457,3483.6,3483.5,0.12438853]
[1718754530361,7.33090752,3483.6,3483.5,0.12438853]
[1718754530526,5.52282901,3483.6,3483.5,0.12438853]
[1718754530726,5.52282901,3483.6,3482.6,3.0]
[1718754530727,2.87068,3483.5,3483.0,2.87103]
[1718754530968,5.14091858,3483.2,3482.3,2.87158]
[1718754531265,5.14091858,3483.2,3482.3,2.8716]
[1718754531266,1.50701777,3482.5,3482.3,2.8716]
[1718754531470,1.50701777,3482.5,3482.4,5.74316]
[1718754531760,1.80831858,3482.9,3482.3,0.842]
[1718754531983,2.08721089,3482.8,3482.6,2.87141]
[1718754532167,1.5064309,3482.7,3482.6,2.87141]
[1718754532331,3.59364179,3482.7,3482.6,2.87141]
[1718754533170,3.59364179,3482.7,3482.6,5.74282]
[1718754533364,2.08721089,3482.7,3482.6,5.74282]
[1718754533543,3.59292212,3482.7,3482.6,5.74282]
[1718754534167,1.50571123,3482.9,3482.8,5.7425]
[1718754534342,1.50571123,3483.0,3482.9,5.74234]
[1718754534535,1.50533362,3483.0,3482.9,2.87117]
[1718754534729,2.08704589,3483.0,3482.9,2.87117]
[1718754535872,4.79570849,3483.2,3483.0,2.87108]
[1718754536050,2.0870911,3483.1,3483.0,2.87108]
[1718754537441,4.9581611,3483.1,3482.8,2.87124]
[1718754537645,1.50476923,3482.9,3482.8,2.87124]
[1718754537881,3.59186033,3482.9,3482.8,2.87124]
[1718754538246,3.59186033,3482.9,3482.8,2.99608571]
[1718754538439,3.59166649,3482.9,3482.8,2.99608571]
[1718754538638,1.50457539,3483.1,3482.9,2.87117]
[1718754538877,1.50457539,3483.1,3483.0,5.74216]
[1718754539173,2.4906,3483.2,3483.1,2.871]
[1718754539346,6.08205487,3483.2,3483.1,2.99580052]
[1718754539548,4.57747948,3483.2,3483.1,2.99580052]
[1718754540049,6.08205487,3483.2,3483.1,2.99580052]
[1718754540382,3.59145487,3483.2,3483.1,5.86680052]
[1718754541055,3.59145487,3483.2,3483.1,2.99580052]
[1718754541255,3.59145487,3483.2,3483.1,0.12480052]
[1718754541840,2.08687948,3483.2,3483.1,0.12480052]
[1718754542141,2.08687948,3483.3,3483.0,2.87106]
[1718754542347,1.50432082,3483.1,3483.0,2.87106]
[1718754542652,3.5912003,3483.1,3483.0,2.99587558]
[1718754542981,2.08687948,3483.1,3483.0,5.86695558]
[1718754543196,2.08687948,3483.3,3483.0,2.99587558]
[1718754543416,0.49689764,3483.4,3483.2,2.87092]
[1718754543625,2.08697964,3483.3,3483.2,6.58383]
[1718754543998,3.82723647,3483.5,3483.2,3.83769546]
[1718754544298,1.50433647,3483.6,3483.5,5.74134]
[1718754544682,1.50433647,3483.6,3483.5,5.86629001]
[1718754544683,3.5910547,3483.6,3483.5,5.86629001]
[1718754545584,3.5910547,3483.6,3483.5,8.73696001]
[1718754545899,1.50433647,3483.7,3483.6,5.74118]
[1718754546098,1.50433647,3483.7,3483.6,8.61177]
[1718754546403,4.12167048,3484.1,3483.6,8.61177]
[1718754546404,1.50440328,3483.8,3483.7,5.74102]
[1718754546565,3.59094678,3483.8,3483.7,5.74102]
[1718754546768,3.59094678,3483.8,3483.7,5.86593989]
[1718754547198,3.59094678,3483.8,3483.7,2.99542989]
[1718754547791,7.3287635,3483.8,3483.7,0.12491989]
[1718754548103,9.15990684,3483.8,3483.7,0.12491989]
[1718754548304,9.15990684,3483.8,3483.4,2.87073]
[1718754548602,1.5046178,3483.5,3483.4,2.87073]
[1718754548903,1.5046178,3483.6,3483.5,2.87067]
[1718754549211,1.5046178,3483.8,3483.6,2.87059]
[1718754549534,1.5046178,3483.8,3483.7,2.87051]
[1718754549702,3.5911974,3483.8,3483.7,2.9950003]
[1718754550814,3.5911974,3483.8,3483.7,5.8655103]
[1718754551013,2.0865796,3483.8,3483.7,5.8655103]
[1718754552674,1.50435675,3484.0,3483.9,2.87034]
[1718754552898,3.59085457,3484.0,3483.9,2.87034]
[1718754553105,2.08649782,3484.0,3483.9,2.99480019]
[1718754553311,2.08649923,3484.1,3484.0,2.87026]
[1718754553701,2.08649923,3484.1,3484.0,2.99470514]
[1718754555433,3.59065212,3484.1,3484.0,5.86496514]
[1718754555594,2.08649923,3484.1,3484.0,5.86496514]
[1718754556032,3.59065212,3484.1,3484.0,5.74052]
[1718754556187,3.59065212,3484.1,3484.0,5.86488735]
[1718754556719,3.59057245,3484.1,3484.0,2.99462735]
[1718754556933,2.08649923,3484.1,3484.0,2.99462735]
[1718754557627,3.04129916,3484.1,3484.0,0.12436735]
[1718754557916,5.91147916,3484.1,3484.0,0.12436735]
[1718754558081,2.4667,3484.0,3483.4,2.87074]
[1718754558280,2.4667,3484.0,3482.5,7.33]
[1718754558281,2.87065,3483.6,3483.1,2.87095]
[1718754558514,3.36741221,3483.6,3483.1,2.87095]
[1718754558719,1.50442753,3483.3,3483.0,2.87106]
[1718754558922,2.87075,3483.5,3483.2,0.12440664]
[1718754559130,5.80580264,3483.4,3483.1,0.12442171]
[1718754559300,0.49676221,3483.4,3483.3,0.12439159]
[1718754559519,5.33754,3483.3,3483.2,0.12440664]
[1718754559806,2.87102,3483.1,3482.7,2.87132]
[1718754560011,3.59145078,3483.0,3482.7,2.87132]
[1718754560214,2.08692564,3482.9,3482.7,2.87132]
[1718754562182,2.08692564,3482.9,3482.1,4.728]
[1718754562488,2.87165,3482.4,3481.9,2.87195]
[1718754562717,2.8719,3482.1,3481.6,2.87216]
[1718754562888,1.50433436,3481.9,3481.5,2.87232]
[1718754563228,1.50433436,3481.9,3481.6,2.87224]
[1718754563716,2.087817,3481.8,3481.7,2.87216]
[1718754564027,1.50433436,3482.1,3481.9,2.87199]
[1718754564197,1.50433436,3482.2,3481.9,2.87199]
[1718754564388,1.50433436,3482.2,3481.7,2.87215]
[1718754564389,4.37610436,3482.2,3481.7,2.87215]
[1718754564587,2.08765916,3482.1,3481.7,2.87215]
[1718754565102,4.95948916,3482.1,3481.7,2.87215]
[1718754565305,2.87183,3482.1,3481.7,2.87215]
[1718754565495,2.87183,3482.1,3481.6,2.87223]
[1718754565702,4.37504363,3482.1,3481.6,2.87223]
[1718754566013,2.87192,3482.0,3481.6,2.87223]
[1718754567311,4.3739956,3482.2,3481.7,2.87215]
[1718754567312,2.87183,3482.1,3481.7,2.87215]
[1718754567513,4.3739956,3482.2,3482.1,2.87183]
[1718754567514,1.5022456,3482.2,3482.1,2.87183]
[1718754567821,14.0789556,3482.5,3481.9,2.87191]
[1718754568022,6.7089556,3482.5,3482.0,2.87188]
[1718754568391,3.8374456,3482.5,3482.1,2.87182]
[1718754568711,2.3352,3482.5,3482.2,2.87169]
[1718754569216,2.3352,3482.5,3482.3,0.1209289]
[1718754569601,2.3352,3482.5,3482.2,2.87169]
[1718754569801,2.3352,3482.5,3482.3,0.1209289]
[1718754570120,2.3352,3482.5,3482.2,2.87169]
[1718754570342,6.45178894,3482.5,3482.4,0.12137054]
[1718754570628,7.16920165,3482.5,3482.1,2.8718]
[1718754570788,0.81961574,3482.4,3482.1,2.8718]
[1718754570984,5.08153836,3482.5,3482.2,2.99311067]
[1718754571225,3.58024894,3482.5,3482.2,2.99311067]
[1718754571631,2.87158,3482.4,3482.2,0.12140067]
[1718754572137,2.87158,3482.4,3482.0,2.87189]
[1718754572337,2.87158,3482.4,3482.3,0.12139576]
[1718754572537,2.87158,3482.4,3482.0,2.87189]
[1718754572690,2.87158,3482.4,3482.3,0.12139576]
[1718754572896,1.36958684,3482.4,3482.2,2.87166]
[1718754573132,3.83648942,3482.5,3482.3,0.11782615]
[1718754573133,5.20671,3482.5,3482.3,0.11782615]
[1718754573343,5.20671,3482.5,3482.1,2.87181]
[1718754573502,5.20671,3482.5,3482.4,0.12138069]
[1718754574128,5.20671,3482.5,3482.1,2.87181]
[1718754574337,2.3352,3482.5,3482.2,2.87174]
[1718754574632,2.3352,3482.5,3482.3,0.12139576]
[1718754574994,2.3352,3482.5,3482.3,2.87166]
[1718754575210,2.10162429,3483.0,3482.3,2.87166]
[1718754575211,2.2977,3482.8,3482.3,2.87166]
[1718754575837,2.2977,3482.8,3482.2,2.87167]
[1718754575838,2.87142,3482.6,3482.2,2.87167]
[1718754576047,2.87135,3482.7,3482.3,2.87166]
[1718754576203,2.87135,3482.7,3482.3,2.99305576]
[1718754578118,3.79819264,3482.8,3482.4,2.87155]
[1718754578320,2.2977,3482.8,3482.5,2.87143]
[1718754578538,4.9956544,3483.4,3482.5,2.87143]
[1718754578539,1.50049264,3483.5,3483.0,2.87108]
[1718754578708,1.50049264,3483.9,3483.4,2.87068]
[1718754578902,1.50049264,3483.9,3483.6,2.87058]
[1718754579236,9.7027,3484.1,3483.6,2.87058]
[1718754579237,14.07339264,3484.1,3483.6,2.87058]
[1718754579553,5.7856269,3484.0,3483.6,2.87058]
[1718754580334,2.9153669,3484.0,3483.2,2.87088]
[1718754580537,11.20319264,3484.1,3483.2,2.87088]
[1718754580538,2.3327,3484.1,3484.0,2.87026]
[1718754580962,2.3327,3484.1,3484.0,2.99079219]
[1718754582054,5.20288,3484.1,3484.0,0.12053219]
[1718754582347,7.6607039,3484.1,3483.4,2.87073]
[1718754582754,6.16023126,3484.1,3483.7,2.87049]
[1718754582958,6.16023126,3484.1,3483.8,0.12072658]
[1718754583161,6.16023126,3484.1,3483.7,2.87049]
[1718754583378,6.16023126,3484.1,3483.3,2.87076]
[1718754583379,2.87027,3484.0,3483.8,0.12072658]
[1718754583677,2.87027,3484.0,3482.8,1.728]
[1718754583678,3.92336339,3484.0,3483.2,2.87092]
[1718754583833,2.87051,3483.7,3483.2,2.87092]
[1718754584037,2.87051,3483.7,3483.3,0.12054476]
[1718754584342,2.87051,3483.7,3483.3,2.87082]
[1718754584533,2.87051,3483.7,3483.4,0.1205297]
[1718754585471,2.87044,3483.8,3483.4,0.1205297]
[1718754585647,3.9331306,3483.8,3483.4,0.1205297]
[1718754586049,2.87068,3483.5,3482.9,2.87112]
[1718754586249,2.87068,3483.5,3483.0,2.87102]
[1718754586447,2.87068,3483.5,3483.1,2.87098]
[1718754586663,2.87061,3483.6,3483.1,2.87098]
[1718754587441,3.75072493,3483.6,3483.1,2.87098]
[1718754587651,2.87068,3483.5,3482.9,2.87109]
[1718754588034,2.87068,3483.5,3483.0,2.87102]
[1718754588453,2.87068,3483.5,3483.1,2.87098]
[1718754589369,2.87077,3483.4,3483.0,2.87107]
[1718754589558,2.87085,3483.3,3482.6,3.0]
[1718754589763,5.84194238,3483.4,3482.9,2.87116]
[1718754589980,5.84194238,3483.4,3483.0,2.87107]
[1718754590681,2.97117238,3483.4,3483.1,2.87094]
[1718754591265,2.97117238,3483.4,3483.0,2.87108]
[1718754591650,2.97117238,3483.4,3482.7,2.87126]
[1718754591651,2.97117238,3483.4,3483.1,2.87099]
[1718754594287,3.88789232,3483.8,3483.5,2.87067]
[1718754594487,3.3909906,3483.8,3483.5,2.87067]
[1718754594884,6.2614306,3483.8,3483.4,2.87074]
[1718754595192,6.75833232,3483.8,3483.4,2.87074]
[1718754595493,6.75833232,3483.8,3483.5,2.9908143]
[1718754595698,6.2614306,3483.8,3483.5,2.9908143]
[1718754596290,6.2614306,3483.8,3483.5,0.1201543]
[1718754600386,7.76192324,3483.8,3483.5,0.1201543]
[1718754600555,8.25878843,3483.8,3483.5,0.1201543]
[1718754600760,3.98350284,3483.7,3483.5,0.1201543]
[1718754600958,2.87059,3483.6,3483.3,2.87082]
[1718754601168,3.11027067,3483.7,3483.3,2.87082]
[1718754601169,3.11027067,3483.7,3483.4,2.99087907]
[1718754601491,3.11027067,3483.7,3483.4,2.99088907]
[1718754601492,5.48392548,3483.7,3483.4,2.99088907]
[1718754601793,0.83090107,3483.6,3483.5,2.87067]
[1718754601994,6.69923264,3483.8,3483.5,0.12013401]
[1718754602789,2.08684572,3483.7,3483.5,0.12013401]
[1718754602996,2.58371091,3483.7,3483.5,0.12013401]
[1718754603197,0.49686519,3483.7,3483.5,0.12013401]
[1718754603493,1.50049264,3483.7,3483.5,0.12013401]
[1718754603691,7.19609783,3483.8,3483.5,0.12013401]
[1718754603893,2.0868263,3483.7,3483.5,0.12013401]
[1718754604063,2.58369149,3483.7,3483.5,0.12013401]
[1718754604265,1.99735783,3483.7,3483.5,0.12013401]
[1718754604590,1.50049264,3483.7,3483.5,0.12013401]
[1718754604967,3.6677001,3483.7,3483.5,0.12013401]
[1718754605284,2.87059,3483.6,3483.2,2.87091]
[1718754605458,5.66504793,3483.7,3483.6,0.12013248]
[1718754605665,7.75267869,3483.7,3483.3,2.87076]
[1718754605860,5.66581345,3483.7,3483.6,0.1200344]
[1718754606084,7.75268445,3483.7,3483.3,2.87076]
[1718754606280,4.80694327,3483.6,3483.3,2.87076]
[1718754606591,2.72007227,3483.6,3483.3,2.87076]
[1718754606763,1.21881411,3483.6,3483.3,2.87076]
[1718754607147,2.72007227,3483.6,3480.9,3.5257246]
[1718754607262,2.3283,3483.8,3480.9,3.5257246]
[1718754607263,3.82955816,3483.8,3483.6,2.87059]
[1718754607466,3.82955816,3483.8,3483.7,2.87051]
[1718754607884,6.63594288,3483.8,3483.4,2.87075]
[1718754608097,2.08672138,3483.7,3483.4,2.87075]
[1718754608397,3.58797954,3483.7,3483.4,2.87075]
[1718754608588,1.50125816,3483.7,3483.4,2.87075]
[1718754608785,4.37177816,3483.7,3483.0,2.87105]
[1718754608971,2.87067,3483.5,3483.1,2.87097]
[1718754609366,4.37192816,3483.5,3483.1,2.87097]
[1718754609675,2.87077,3483.4,3482.8,2.87125]
[1718754609882,5.31657,3483.3,3482.8,2.87125]
[1718754610282,7.31469335,3483.3,3482.8,2.87125]
[1718754610800,4.44382335,3483.3,3482.9,2.87116]
[1718754611141,6.81780816,3483.3,3482.9,2.87116]
[1718754611410,4.44382335,3483.3,3483.0,2.87107]
[1718754611613,3.94695816,3483.3,3483.0,2.87107]
[1718754612179,2.08703424,3483.2,3483.0,2.87107]
[1718754612620,2.08703424,3483.2,3483.1,2.871]
[1718754612801,2.94261694,3483.3,3483.1,2.871]
[1718754613005,2.4457,3483.3,3483.1,2.871]
[1718754613204,3.94695816,3483.3,3483.1,2.871]
[1718754613389,2.08700119,3483.2,3483.1,2.871]
[1718754613594,2.08700119,3483.2,3483.0,2.87106]
[1718754613896,2.94261694,3483.3,3483.0,2.87106]
[1718754614091,2.4457,3483.3,3483.0,2.87106]
[1718754614314,3.94695816,3483.3,3483.1,0.11886316]
[1718754615504,2.08693005,3483.2,3483.1,0.11886316]
[1718754616090,3.58818821,3483.2,3483.1,0.11886316]
[1718754616387,3.58818821,3483.2,3483.1,2.98986316]
[1718754618316,2.08693005,3483.2,3483.1,2.98986316]
[1718754619825,2.08693005,3483.2,3483.1,0.11886316]
[1718754619991,5.14460317,3483.2,3483.1,0.11722016]
[1718754620190,5.14460317,3483.2,3482.8,2.87123]
[1718754620191,7.44738391,3483.2,3482.8,2.87123]
[1718754620518,5.97986519,3483.1,3482.8,2.87123]
[1718754620699,4.17399409,3483.0,3482.8,2.87123]
[1718754620897,2.08693005,3482.9,3482.8,2.87123]
[1718754621107,2.08693005,3483.0,3482.8,2.87123]
[1718754621308,2.08693005,3482.9,3482.8,2.87123]
[1718754621805,2.08693005,3483.0,3482.8,2.87123]
[1718754622212,2.08693005,3483.0,3482.9,2.87117]
[1718754622414,4.17406699,3483.0,3482.9,2.87117]
[1718754622590,4.17406699,3483.0,3482.8,2.87122]
[1718754622943,2.08693005,3482.9,3482.7,2.87131]
[1718754623224,4.17406706,3482.9,3482.8,5.7425]
[1718754623385,2.08693005,3482.9,3482.8,5.7425]
[1718754623589,2.08693005,3483.0,3482.8,2.87125]
[1718754623809,2.08693005,3482.9,3482.8,2.87125]
[1718754624019,2.08693005,3482.9,3482.8,5.7425]
[1718754624427,2.4457,3483.3,3482.9,2.87117]
[1718754624428,1.80818647,3483.1,3482.9,2.87117]
[1718754624589,2.08709533,3483.0,3482.9,2.87117]
[1718754627317,2.08709533,3483.0,3482.9,5.74234]
[1718754627625,3.5940477,3483.0,3482.9,10.51843215]
[1718754628703,2.08709533,3483.0,3482.9,13.38960215]
[1718754628905,1.80818647,3483.3,3483.2,11.48368]
[1718754628906,1.50706012,3483.3,3483.2,11.48368]
[1718754629112,1.50706012,3483.5,3483.4,5.7415]
[1718754629407,2.08660241,3483.5,3483.4,6.70066147]
[1718754629608,1.80818647,3483.8,3483.7,2.87051]
[1718754629814,3.89481496,3483.8,3483.7,0.1171163]
[1718754630439,3.89481496,3483.8,3483.7,2.9876263]
[1718754630952,3.89481496,3483.8,3483.7,5.8581363]
[1718754630953,3.89465887,3483.8,3483.7,5.8581363]
[1718754631230,2.08666932,3483.8,3483.7,5.8581363]
[1718754631436,2.08666932,3483.8,3483.7,5.74102]
[1718754631735,2.08666932,3483.8,3483.7,5.8581363]
[1718754631936,2.08666932,3483.8,3483.7,5.89435946]
[1718754632335,1.80798955,3484.0,3483.9,2.87034]
[1718754632538,3.89454413,3484.0,3483.9,5.74068]
[1718754632738,2.08655458,3484.0,3483.9,5.89384861]
[1718754632939,3.59265117,3484.0,3483.9,5.89384861]
[1718754637027,3.59265117,3484.0,3483.9,3.02350861]
[1718754637631,2.08655458,3484.0,3483.9,5.89384861]
[1718754638355,3.59265117,3484.0,3483.9,3.02350861]
[1718754638543,2.08655458,3484.0,3483.9,3.02350861]
[1718754639323,1.50609659,3484.1,3484.0,2.87026]
[1718754639530,3.59248232,3484.1,3484.0,2.87026]
[1718754639759,3.59248232,3484.1,3484.0,3.02341251]
[1718754641933,2.08638573,3484.1,3484.0,5.89367251]
[1718754642461,3.78579659,3484.2,3484.0,5.89367251]
[1718754642462,2.2797,3484.2,3484.1,2.87018]
[1718754642657,4.36605274,3484.2,3484.1,2.87018]
[1718754642866,5.87214933,3484.2,3484.1,3.02305599]
[1718754643251,4.36605274,3484.2,3484.1,3.02305599]
[1718754643563,5.86943281,3484.2,3484.1,3.02305599]
[1718754643763,3.58973281,3484.2,3484.1,3.02305599]
[1718754643943,2.08635274,3484.2,3484.1,3.02305599]
[1718754644459,2.08635274,3484.2,3484.1,5.89323599]
[1718754644839,1.50338007,3484.3,3484.2,2.87002]
[1718754645041,1.50338007,3484.3,3484.2,3.02278521]
[1718754645245,2.08633627,3484.3,3484.2,3.02278521]
[1718754645476,2.08633627,3484.3,3484.2,5.89287521]
[1718754647850,1.50338007,3484.4,3484.3,2.87001]
[1718754648054,2.0862793,3484.4,3484.3,3.02271855]
[1718754648255,3.58965937,3484.4,3484.3,3.02271855]
[1718754649056,2.0862793,3484.4,3484.3,3.02271855]
[1718754649457,3.58965937,3484.4,3484.3,3.02271855]
[1718754649782,4.53135925,3484.4,3484.3,3.02271855]
[1718754650185,4.53135925,3484.4,3484.3,2.87001]
[1718754650494,4.53135925,3484.4,3484.3,3.02271855]
[1718754654493,4.53135925,3484.4,3484.3,0.15270855]
[1718754657464,4.53135925,3484.4,3484.3,3.02271855]
[1718754657669,1.50338007,3484.5,3484.4,8.60979]
[1718754657982,2.9678516,3484.8,3484.7,2.86968]
[1718754658166,2.4711,3484.8,3484.7,5.73936]
[1718754658367,1.50195321,3485.1,3484.8,2.86957]
[1718754658694,2.08590866,3485.0,3484.9,0.15252749]
[1718754660183,3.58786187,3485.0,3484.9,0.15252749]
[1718754660702,3.58786187,3485.0,3484.8,2.86957]
[1718754660889,2.9678516,3485.1,3484.9,2.86952]
[1718754661201,2.4711,3485.1,3484.9,2.86952]
[1718754661904,2.4711,3485.1,3485.0,2.86944]
[1718754662299,2.4711,3485.1,3485.0,3.02195141]
[1718754662472,0.4967516,3485.2,3485.1,5.7387]
[1718754662676,0.4967516,3485.2,3485.1,5.89119532]
[1718754662877,3.78865321,3485.6,3485.1,3.02177532]